{"text_format":"1","workbook":"xlsx","n_sheets":24,"sheets":["MSL","intro","disclaimer","Tool","Tool_Aero","data","Mark","Tables","H1","H2","Guide","Substances","R1","R2","R3","L1","L2","L3","L4","L5","L6","to do ","L7","L8"],"not_rendered":{"charts":0,"images":38,"macros":1,"external_links":0,"defined_names":55,"comments":0,"pivot_tables":0},"unopened":[],"bounds":{"document_bytes":16777216,"sheet_cells":100000,"rows_first":2000,"rows_last":500,"rows_between":2000,"halvings":0,"cell_chars":16384,"cell_head_chars":4096},"cells_cut":0,"cells_raw":0,"read":"whole","date_system":"1900"}

{"sheet":"MSL","index":0,"n_rows":0,"n_cols":0,"rows_kept":0,"cut":false,"hidden":false,"merged":[]}

{"sheet":"intro","index":1,"n_rows":19,"n_cols":1,"rows_kept":19,"cut":false,"hidden":false,"merged":[]}
[]
[]
[]
[]
[]
[]
[]
[]
[]
[]
[]
[]
[]
[]
[]
[]
["Version 33"]
[14]
["Windows (32-bit) NT 6.02"]

{"sheet":"disclaimer","index":2,"n_rows":0,"n_cols":0,"rows_kept":0,"cut":false,"hidden":false,"merged":[]}

{"sheet":"Tool","index":3,"n_rows":27,"n_cols":19,"rows_kept":27,"cut":false,"hidden":false,"merged":[[4,17,4,18],[19,10,20,12],[18,10,18,12],[5,17,5,18],[12,16,13,18],[5,10,5,13],[19,18,20,18],[19,16,20,17],[12,15,13,15]]}
[]
[]
[]
[]
[null,null,null,null,null,null,"Temp.",null,null,null,"Name",null,null,null,null,"OEL",null,"Sat Vap"]
[null,null,null,null,null,null,25,null,null,null,"Allyl alcohol",null,null,null,null,2,null,26.1]
[]
[]
[]
[null,null,null,null,null,null,null,null,null,null,null,null,null,null,null,"VHR",{"$f":"IF(ChoiceSub=\"\",\"\",SatVap/OEL)","v":13.05}]
[null,null,null,null,null,null,null,null,null,null,"Factor",{"$f":"Control_factor(ChoiceControl,TbControls)","v":"   1/1,000th of Saturation"},null,null,null,"VHR scale",{"$f":"VHRScale(Q10)","v":3}]
[null,null,null,1]
[null,null,null,2,null,null,null,null,null,null,"Results",null,null,null,null,"ReqLC",{"$f":"IF(VHRsc=\"\",\"\",VLOOKUP(VHRsc,TbVHR,4,FALSE))","v":"GGV with capture at emission points"}]
[null,null,null,3,null,null,null,null,null,null,"SVC",{"$f":"SVC_Daniel(SatVap)","v":34300}]
[null,null,null,4,null,null,null,null,null,null,"Cmax",{"$f":"C_Maximum(SVC,Factor,FactorNum)","v":34.299999999999997}]
[null,null,null,5,null,null,null,null,null,null,"X0.95",{"$f":"X_95_Daniel(Cmax,OEL)","v":1720}]
[null,null,null,6,null,null,null,null,null,null,"Category",{"$f":"OEL_Cat(X_95)","v":4}]
[null,null,null,7]
[null,null,null,8,null,null,null,null,null,null,{"$f":"IF(Category=\"\",\"\",\"Recommended Control :\")","v":"Recommended Control :"}]
[null,null,null,9,null,null,null,null,null,null,{"$f":"IF(Category=\"\",\"\",VLOOKUP(L17,TbCat,3,FALSE))","v":"+ respirators & engineering controls, work practice controls"},null,null,null,null,null,{"$f":"IF(Choice_oRLOC=\"\",\"\",\"Predicted exposure Category\")","v":"Predicted exposure Category"},null,{"$f":"PEC(VHRsc,Choice_oRLOC)","v":4}]
[null,null,null,10]
[]
[]
[null,null,null,4]
[null,null,null,5]
[null,null,null,6]
[null,null,null,7]

{"sheet":"Tool_Aero","index":4,"n_rows":12,"n_cols":7,"rows_kept":12,"cut":false,"hidden":false,"merged":[[8,4,8,7]]}
[]
[]
[]
[]
[]
[]
[null,null,null,"PHR Scale",{"$f":"IF(ChoiceOEL_range=\"\",\"\",VLOOKUP(ChoiceOEL_range,TbPHR,3,FALSE))","v":5}]
[]
[null,null,null,"ReqLC",{"$f":"IF(ChoiceOEL_range=\"\",\"\",VLOOKUP(ChoiceOEL_range,TbPHR,4,FALSE))","v":"Containment"}]
[]
[null,null,null,"Select the ObsLC "]
[null,null,null,null,null,null,{"$f":"PEC(PHRsc,Choice_oRLOC_2)","v":4}]

{"sheet":"data","index":5,"n_rows":17,"n_cols":14,"rows_kept":17,"cut":false,"hidden":false,"merged":[]}
[]
[]
[null,"Data for the 'CheckList\"",null,null,null,null,null,null,null,{"$f":"SUM(PercentZone)","v":0}]
[]
[]
[null,null,null,null,null,null,null,"Choice","Name","Percentage","OEL","SatVap","SatVapAntoine","SatVapCC"]
[null,null,1,"RefVal",null,"ChoiceSub",1,29,null,{"$f":"Tool!F12","v":0}]
[null,null,1,"SV_Type",null,null,2,null,null,{"$f":"Tool!G13","v":0}]
[null,null,null,null,null,null,3,null,null,{"$f":"Tool!G14","v":0}]
[null,null,null,null,null,null,4,null,null,{"$f":"Tool!G15","v":0}]
[null,null,3,"ChoiceControl",null,null,5,null,null,{"$f":"Tool!G16","v":0}]
[null,null,{"$f":"IF(ChoiceControl=0,\"\",VLOOKUP(ChoiceControl,TbControls,5,FALSE))","v":1000},"FactorNum",null,null,6,null,null,{"$f":"Tool!G17","v":0}]
[null,null,1,"Choice_oRLOC",null,null,7,null,null,{"$f":"Tool!G18","v":0}]
[null,null,null,null,null,null,8,null,null,{"$f":"Tool!G19","v":0}]
[null,null,5,"ChoiceOEL_range",null,null,9,null,null,{"$f":"Tool!G20","v":0}]
[null,null,3,"Choice_oRLOC_2",null,null,10,null,null,{"$f":"Tool!G21","v":0}]
[null,null,{"$f":"IF(OR(ISBLANK(ChoiceOEL_range),ISBLANK(Choice_oRLOC_2)),\"\",\"Predicted exposure category\")","v":"Predicted exposure category"}]

{"sheet":"Mark","index":6,"n_rows":26,"n_cols":31,"rows_kept":26,"cut":false,"hidden":false,"merged":[]}
[null,null,null,null,null,"Exposure Index Calculations",null,null,null,"@ 25 degrees C"]
[]
[null,null,null,null,null,"STEP 1:  Enter Mix Information in GREEN area below.  Resulting Exposure Calculations are shown in green areas."]
[null,null,null,null,null,null,null,{"$f":"COUNTA(WT)","v":6}]
[null,null,null,null,null,"CAS","Chemical","WT (%)","OEL\nppm","MW","VP\n(torr)","Mole Fraction","Mole % in Liquid","Adjusted VP","Vapor Mole Percent","Adjusted VHR","VHR Ratio %",null,null,null,null,null,null,null,"Assume have 1 g",null,"(OELxMW)\n/24.5",{"$f":"SUM(AB7:AB16)","v":2.3618970838578612E-2}]
[null,null,null,null,null,"Number","Information","MSDS","look up","look up","look up","A/C","E/total E","F* D","(G/total G)*100","(G/B)","(H/Max H)* 100",null,"Sat. VP","Poor","Good","Capture","Contain."]
[null,null,null,null,1,null,"toluene",40,20,92.1,28.4,{"$f":"IF(MW=0,0,WT/MW)","v":0.43431053203040176},{"$f":"IF(TotMolFraction=0,0,MolFraction/TotMolFraction)","v":0.43059351767804227},{"$f":"MolPer*VP","v":12.2288559020564},{"$f":"IF(TotAdjVP=0,0,AdjVP/TotAdjVP)","v":0.19209098776459799},{"$f":"IF(OR(MW=0,OOOO=0),0,(((WT/MW)/TotMolFraction)*VP)/OOOO)","v":0.61144279510282007},{"$f":"IF(MAX(AdjVHR)=0,0,AdjVHR/MAX(AdjVHR))","v":0.1270197959473513},null,{"$f":"AdjVP/760*10^6","v":16090.599871126842},{"$f":"S7/100","v":160.90599871126841},{"$f":"S7/1000","v":16.090599871126841},{"$f":"S7/10000","v":1.6090599871126843},{"$f":"S7/100000","v":0.16090599871126843},null,{"$f":"WT/100*MW","v":36.839999999999996},null,{"$f":"(OOOO*MW)/24.5","v":75.183673469387756},{"$f":"IF(OR(WT=0,MW=0,OOOO=0),0,WT/100/((OOOO*MW)/24.5))","v":5.3203040173724217E-3},null,null,{"$f":"WT*MW/100","v":36.840000000000003}]
[null,null,null,null,2,null,"xylene",20,100,106.2,8.74,0.18832391713747645,0.18671216091406634,{"$f":"MolPer*VP","v":1.6318642863889399},2.5633340124443686E-2,1.6318642863889399E-2,3.3899993643074526E-3,null,2147.1898505117629,21.471898505117629,2.1471898505117628,0.21471898505117629,2.1471898505117628E-2,null,21.240000000000002,null,{"$f":"(OOOO*MW)/24.5","v":433.46938775510205},4.6139359698681734E-4,null,null,21.24]
[null,null,null,null,3,null,"ethyl acetate",20,400,88.1,93.2,0.22701475595913737,0.22507186707234786,20.976698011142823,0.32950217692257822,5.2441745027857055E-2,1.0894134015335469E-2,null,27600.91843571424,276.00918435714243,27.600918435714242,2.7600918435714239,0.27600918435714239,null,17.62,null,1438.3673469387754,1.3904653802497164E-4,null,null,17.62]
[null,null,null,null,4,null,"benzene",2,0.5,78.099999999999994,94.8,2.5608194622279132E-2,2.5389028795228998E-2,2.406879929787709,3.780729340885932E-2,4.8137598595754181,1,null,3166.9472760364592,31.669472760364592,3.1669472760364594,0.31669472760364592,3.1669472760364595E-2,null,1.5619999999999998,null,1.593877551020408,1.2548015364916775E-2,null,null,1.5619999999999998]
[null,null,null,null,5,null,"methylene chloride",3,25,84.9,435,3.533568904593639E-2,3.5033271182109263E-2,15.23947296421753,0.23938178993638862,0.60957891856870117,0.12663259829136286,null,20051.938110812538,200.51938110812537,20.051938110812539,2.0051938110812539,0.20051938110812539,null,2.5470000000000002,null,86.632653061224488,3.4628975265017667E-4,null,null,2.5470000000000002]
[null,null,null,null,6,null,"carbon tetrachloride",15,5,153,115,9.8039215686274508E-2,9.7200154358205129E-2,11.17801775119359,0.17558441184313206,2.2356035502387179,0.46441941755605193,null,14707.918093675777,147.07918093675778,14.707918093675776,1.4707918093675776,0.14707918093675776,null,22.95,null,31.224489795918366,4.8039215686274507E-3,null,null,22.95]
[null,null,null,null,7,null,null,null,null,null,null,0,0,0,0,0,0,null,0,0,0,0,0,null,0,null,0,0,null,null,0]
[null,null,null,null,8,null,null,null,null,null,null,0,0,0,0,0,0,null,0,{"$f":"S14/100","v":0},{"$f":"S14/1000","v":0},{"$f":"S14/10000","v":0},{"$f":"S14/100000","v":0},null,0,null,0,0]
[null,null,null,null,9,null,null,null,null,null,null,0,0,0,0,0,0,null,0,0,0,0,0,null,0,null,0,0]
[null,null,null,null,10,null,null,null,null,null,null,0,0,0,0,0,0,null,0,0,0,0,0,null,0,null,0,0,null,null,0]
[]
[null,null,null,null,null,null,null,{"$f":"SUM(WT)","v":100},null,null,null,{"$f":"SUM(MolFraction)","v":1.0086323044815058},{"$f":"SUM(MolPer)","v":0.99999999999999989},{"$f":"SUM(AdjVP)","v":63.661788844786997},null,{"$f":"SUM(AdjVHR)","v":8.3391455113774029},null,null,null,null,null,null,null,"MW of Mixture:",{"$f":"SUM(Y7:Y16)","v":102.759},null,null,{"$f":"1/SUM(AB7:AB16)","v":42.338847311950865},"OEL mix in mg/m³"]
[null,null,null,null,null,null,null,null,null,null,null,null,null,null,null,null,null,null,null,null,null,null,null,"MATRIX formula !",{"$f":"Sig_Figure(SUM(WT/100*MW),5)","v":102.76},null,null,{"$f":"OEL_Mix/(MW_Mix/24.5)","v":10.094510058902832},"OEL mix in ppm"]
[]
[]
[]
[null,null,null,null,null,null,null,null,null,null,null,null,null,null,null,"3 sig figures",null,null,null,null,null,null,null,null,"5 sig figures",null,null,"4 sig figures"]
[null,null,null,null,null,null,null,null,null,null,null,null,null,null,null,"Adjusted VHR",null,null,null,null,null,null,null,null,"MW of Mixture:",null,null,"OEL mix"]
[null,null,null,null,null,null,null,null,null,null,null,null,null,null,"VBA",{"$f":"Adjusted_VHR_Mixture_CheckList(WT,MW,OOOO,VP)","v":8.34},null,null,null,null,null,null,null,"VBA",{"$f":"MW_mixture_CheckList(WT,MW)","v":102.76},null,"VBA",{"$f":"OEL_Mixture_CheckList(WT,OOOO,MW)","v":42.34},"OEL mix in mg/m³"]
[null,null,null,null,null,null,null,null,null,null,null,null,null,null,null,null,null,null,null,null,null,null,null,null,null,null,"VBA",{"$f":"OEL_Mix_PPM_Checklist(AB25,Y25)","v":10.09},"OEL mix in ppm"]

{"sheet":"Tables","index":7,"n_rows":38,"n_cols":9,"rows_kept":38,"cut":false,"hidden":false,"merged":[]}
[]
[]
[null,"Table of Controls"]
[]
[null,"#","Observed Level of Control (OLOC)","sfhsfd","Fraction of Saturation","Factor"]
[null,1,"Confined Space – ","Virtually no circulation","   1/10th of Saturation",10]
[null,2,"Poor – Limited Circulation","Limited Circulation","   1/100th of Saturation",100]
[null,3,"Good – General ","~ 6 air changes/hr.","   1/1,000th of Saturation",1000]
[null,4,"Capture",null,"  1/10,000th of Saturation",10000]
[null,5,"Containment",null," 1/100,000th of Saturation",100000]
[]
[null,"Table of VHR"]
[]
[null,"Num","Vapor Hazard Ratio (VHR)","VHR Scale","Required Levels of Control (RLOC)",null,null,"ECC :","Exposure Control Category"]
[null,1,"< 0.05",1,"General Ventilation ~ 3 to 6 air turnovers /hr.",null,null,"OEL:","Occupational Exposure Limit"]
[null,2,"0.05 to < 1",2,"Good general ventilation ~ 6 to 12 air turnovers/hr. (GGV)",null,null,"oRLC","Observed or Reported Level of Control"]
[null,3,"1 to < 25 ",3,"GGV with capture at emission points",null,null,"PHR:","Potential Hazard Ratio"]
[null,4,"25 to < 500",4,"Capture at points of emission with containment wherever practical ",null,null,"RLOC","Required Level of (Engineering) Control"]
[null,5,"500 to < 3000",5,"Containment",null,null,"SVC","Saturated Vapor Concentration "]
[null,6,"> 3000",6,"Primary and Secondary Containment",null,null,"VP","Vapor Pressure, (mm Hg)"]
[null,null,null,null,null,null,null,"VPR","Vapor Hazard Ratio"]
[null,"Table of PHR"]
[]
[null,"num","OEL Range (mg/m3)","PHR Scale","Required Levels of Control"]
[null,1,"> 5 ",1,"General ventilation ~ 2 to 4 air turnovers/hr. "]
[null,2,"≤ 5 to 1",2,"Good – General + fans ~ 4 to 6 air turnovers/hr. "]
[null,3,"≤ 1 to 0.1",3,"Good – General + fans ~ 6 to 8 air turnovers/hr."]
[null,4,"≤ 0.1 to 0.01",4,"Capture"]
[null,5,"≤ 0.01 to 0.001",5,"Containment"]
[null,6,"≤ 0.001 ",6,"Secondary containment"]
[]
[null,null,"Table of Categories"]
[]
[null,null,"Cat","Exposure Control Category (ECC)","Recommended Control"]
[null,null,1,"1\nX0.95 < 0.10 OEL","General HazCom"]
[null,null,2,"2\n0.10 OEL < X0.95 < 0.5 OEL","+ chemical specific HazCom"]
[null,null,3,"3\n0.5 OEL < X0.95 < OEL","+ exposure surveillance, medical surveillance, work practices"]
[null,null,4,"4\nOEL < X0.95","+ respirators & engineering controls, work practice controls"]

{"sheet":"H1","index":8,"n_rows":0,"n_cols":0,"rows_kept":0,"cut":false,"hidden":false,"merged":[]}

{"sheet":"H2","index":9,"n_rows":0,"n_cols":0,"rows_kept":0,"cut":false,"hidden":false,"merged":[]}

{"sheet":"Guide","index":10,"n_rows":0,"n_cols":0,"rows_kept":0,"cut":false,"hidden":false,"merged":[]}

{"sheet":"Substances","index":11,"n_rows":160,"n_cols":20,"rows_kept":160,"cut":false,"hidden":false,"merged":[]}
[]
[null,null,"Substance table",null,{"$f":"COUNTA(C:C)-2","v":155}]
[]
[]
[null,null,"#","CASRN","name_fr","name_en","twa_ppm","twa_mgm3","st_ppm","st_mgm3","ceiling_ppm","ceiling_mgm3","percutaneous","cancerogenicity","Mention EM","odorThresholdMin","odorThresholdMax","IDLH","pSat","pSatTemp"]
[null,null,1,"79-34-5","Tétrachloro-1,1,2,2, éthane (Tétrachlorure d'acétylène)","1,1,2,2-Tetrachloroethane",1,6.9,null,null,null,null,true,"",null,3,5,100,4.62,25]
[null,null,2,"76-13-1","Trichloro-1,1,2 trifluoro-1,2,2 éthane","1,1,2-Trichloro-1,2,2-trifluoroethane",1000,7670,1250,9590,null,null,false,"",null,45,134,2000,363,25]
[null,null,3,"79-00-5","Trichloro-1,1,2 éthane","1,1,2-Trichloroethane",10,55,null,null,null,null,true,"",null,16,null,100,23.25,25]
[null,null,4,"594-72-9","Dichloro-1,1 nitro-1 éthane","1,1-Dichloro-1-nitroethane",2,12,null,null,null,null,false,"",null,null,null,25,16,25]
[null,null,5,"75-34-3","Dichloro-1,1 éthane","1,1-Dichloroethane",100,405,null,null,null,null,false,"",null,5,200,3000,227,25]
[null,null,6,"75-35-4","Dichloro-1,1 éthylène","1,1-Dichloroethylene",1,4,null,null,null,null,false,"",null,504.4,1000,null,600,25]
[null,null,7,"96-18-4","Trichloro-1,2,3 propane","1,2,3-Trichloropropane",10,60,null,null,null,null,true,"",null,null,null,100,3.69,25]
[null,null,8,"106-93-4","Dibromo-1,2 éthane","1,2-Dibromoethane",20,155,null,null,null,null,true,"C2","EM",8,10,100,11.2,25]
[null,null,9,"107-06-2","Dichloro-1,2 éthane","1,2-Dichloroethane",1,4,2,8,null,null,false,"C2","EM",3,110,50,78.900000000000006,25]
[null,null,10,"540-59-0","Dichloro-1,2 éthylène","1,2-Dichloroethylene",200,793,null,null,null,null,false,"",null,8.5000000000000006E-2,null,1000,201,25]
[null,null,11,"78-87-5","Dichloro-1,2 propane","1,2-Dichloropropane",75,347,110,508,null,null,false,"",null,0.2,null,400,53.3,25]
[null,null,12,"764-41-0","Dichloro-1,4 butène-2","1,4-Dichloro-2-butene",5.0000000000000001E-3,2.5000000000000001E-2,null,null,null,null,true,"C2","EM",null,null,null,3,25]
[null,null,13,"108-03-2","Nitro-1 propane","1-Nitropropane",25,91,null,null,null,null,false,"",null,300,null,1000,10.1,25]
[null,null,14,"111-76-2","Butoxy-2 éthanol","2-Butoxyethanol",20,97,null,null,null,null,true,"",null,0.1,null,700,0.88,25]
[null,null,15,"110-80-5","Éther monoéthylique de l'éthylène glycol","2-Ethoxyethanol (EGEE)",5,18,null,null,null,null,true,"",null,0.5,25,500,5.31,25]
[null,null,16,"111-15-9","Acétate d'éthylglycol","2-Ethoxyethyl acetate (EGEEA)",5,27,null,null,null,null,true,"",null,0.1,null,500,2.34,25]
[null,null,17,"999-61-1","Acrylate hydroxy-2 propyle","2-Hydroxypropyl acrylate",0.5,2.8,null,null,null,null,true,""]
[null,null,18,"109-86-4","Éther monométhylique de l'éthylène glycol","2-Methoxyethanol (EGME)",5,16,null,null,null,null,true,"",null,0.1,0.22,200,9.5,25]
[null,null,19,"110-49-6","Acétate de méthylglycol","2-Methoxyethyl acetate (EGMEA)",5,24,null,null,null,null,true,"",null,null,null,200," ",20]
[null,null,20,"79-46-9","Nitro-2 propane","2-Nitropropane",10,36,null,null,null,null,false,"C2","EM",3.1,7.9,100,20,25]
[null,null,21,"107-05-1","Chloro-3 propène","3-Chloropropene (allyl chloride)",1,3,2,6,null,null,false,"",null,0.47,1.2,250,368,25]
[null,null,22,"64-19-7","Acide acétique","Acetic acid",10,25,15,37,null,null,false,"",null,7.3999999999999996E-2,1020,50,11.25,20]
[null,null,23,"67-64-1","Acétone","Acetone",500,1190,1000,2380,null,null,false,"",null,20,680,2500,231,25]
[null,null,24,"75-05-8","Acétonitrile","Acetonitrile",40,67,60,101,null,null,false,"",null,null,42,500,88.8,25]
[null,null,25,"98-86-2","Acétophénone","Acetophenone",10,49,null,null,null,null,false,"",null,0.2,0.6,null,0.39700000000000002,25]
[null,null,26,"79-06-1","Acrylamide","Acrylamide",0.03,null,null,null,null,null,true,"C2","EM",null,null,60,6.7499999999999999E-3,25]
[null,null,27,"107-13-1","Acrylonitrile","Acrylonitrile",2,4.3,null,null,null,null,true,"C2","EM",1.6,36,85,109,25]
[null,null,28,"111-69-3","Adiponitrile","Adiponitrile",2,8.8000000000000007,null,null,null,null,true,"",null,null,null,null,6.8000000000000005E-4,25]
[null,null,29,"107-18-6","Alcool allylique","Allyl alcohol",2,4.8,4,9.5,null,null,true,"",null,2.1,null,20,26.1,25]
[null,null,30,"532-27-4","Alpha-Chloroacétophénone","alpha-Chloroacetophenone",0.05,0.32,null,null,null,null,false,"",null,1.6E-2,2.4E-2,15,1.2E-2,20]
[null,null,31,"98-83-9","Alpha-Méthylstyrène","alpha-Methyl styrene",50,242,100,483,null,null,false,"",null,0.05,200,700,1.9,25]
[null,null,32,"62-53-3","Aniline","Aniline",2,7.6,null,null,null,null,true,"",null,1,null,100,0.49,25]
[null,null,33,"71-43-2","Benzène","Benzene",1,3,5,15.5,null,null,false,"C1","EM",2,null,500,94.8,25]
[null,null,34,"92-52-4","Biphényle","Biphenyl",0.2,1.3,null,null,null,null,false,"",null,1E-3,0.05,100,8.9300000000000004E-3,25]
[null,null,35,"7726-95-6","Brome","Bromine",0.1,0.66,0.2,1.3,null,null,false,"",null,0.05,3.7,3,212,25]
[null,null,36,"75-25-2","Bromoforme","Bromoform",0.5,5.2,null,null,null,null,true,"",null,0.19,null,850,7.5,30.5]
[null,null,37,"109-79-5","Butyl mercaptan","Butyl mercaptan",0.5,1.8,null,null,null,null,false,"",null,0.1,1,500,45.5,25]
[null,null,38,"76-22-2","Camphre synthétique","Camphor (synthetic)",2,12,3,19,null,null,false,"",null,1.3,null,200,0.65,25]
[null,null,39,"75-15-0","Carbone, disulfure de","Carbon disulfide",4,12,12,36,null,null,true,"",null,0.1,0.2,500,359,25]
[null,null,40,"56-23-5","Carbone, tétrachlorure de","Carbon tetrachloride",5,31,10,63,null,null,true,"C2","EM",21.4,50,200,115,25]
[null,null,41,"79-04-9","Chlorure de chloroacétyle","Chloroacetyl chloride",0.05,0.23,0.15,0.69,null,null,true,"",null,2.3E-2,null,null,25.2,25]
[null,null,42,"108-90-7","Chlorobenzène","Chlorobenzene",50,230,null,null,null,null,false,"",null,0.2,61,1000,12,25]
[null,null,43,"74-97-5","Chlorobromométhane","Chlorobromomethane",200,1060,null,null,null,null,false,"",null,320,null,2000,142,25]
[null,null,44,"67-66-3","Chloroforme","Chloroform",5,24.4,null,null,null,null,false,"C2","EM",51,204,500,197,25]
[null,null,45,"1319-77-3","Crésol, tous les isomères","Cresol (all isomers)",5,22,null,null,null,null,true,"",null,2.7999999999999998E-4,5,250,0.17,25]
[null,null,46,"98-82-8","Cumène","Cumene",50,246,null,null,null,null,true,"",null,1.2,null,900,4.5,25]
[null,null,47,"110-82-7","Cyclohexane","Cyclohexane",300,1030,null,null,null,null,false,"",null,0.41699999999999998,25,1300,96.9,25]
[null,null,48,"108-93-0","Cyclohexanol","Cyclohexanol",50,206,null,null,null,null,true,"",null,6.2E-2,null,400,0.8,25]
[null,null,49,"108-94-1","Cyclohexanone","Cyclohexanone",25,100,null,null,null,null,true,"",null,0.12,100,700,5,26.4]
[null,null,50,"110-83-8","Cyclohexène","Cyclohexene",300,1010,null,null,null,null,false,"",null,0.18,null,2000,89,25]
[null,null,51,"108-91-8","Cyclohexylamine","Cyclohexylamine",10,41,null,null,null,null,false,"",null,2.6,null,null,10.1,25]
[null,null,52,"542-92-7","Cyclopentadiène","Cyclopentadiene",75,203,null,null,null,null,false,"",null,1.8740000000000001,null,750,439,25]
[null,null,53,"287-92-3","Cyclopentane","Cyclopentane",600,1720,null,null,null,null,false,"",null,null,null,null,317.8,25]
[null,null,54,"123-42-2","Diacétone alcool","Diacetone alcohol",50,238,null,null,null,null,false,"",null,0.28000000000000003,1.7,1800,0.97,20]
[null,null,55,"77-73-6","Dicyclopentadiène","Dicyclopentadiene",5,27,null,null,null,null,false,"",null,3.0000000000000001E-3,0.2,null,1.4,20]
[null,null,56,"60-29-7","Éther diéthylique","Diethyl ether",400,1210,500,1520,null,null,false,"",null,0.33,1,1900,538,25]
[null,null,57,"96-22-0","Diéthyl cétone","Diethyl ketone",200,705,null,null,null,null,false,"",null,0.9,null,null,37.700000000000003,25]
[null,null,58,"108-83-8","Diisobutyl cétone","Diisobutyl ketone",25,145,null,null,null,null,false,"",null,0.11,0.32,500,1.65,25]
[null,null,59,"108-20-3","Éther diisopropylique","Diisopropyl ether",250,1040,310,1300,null,null,false,"",null,1.7000000000000001E-2,30,1400,149,25]
[null,null,60,"108-18-9","Diisopropylamine","Diisopropylamine",5,21,null,null,null,null,true,"",null,0.1,null,200,79.400000000000006,25]
[null,null,61,"25154-54-5","Dinitrobenzène (tous les isomères) [528-29-0; 99-65-0; 100-25-4; 25154-54-4]","Dinitrobenzene (all isomers)",0.15,1,null,null,null,null,true,"",null,null,null,50,2.0000000000000001E-4,25]
[null,null,62,"123-91-1","Dioxane","Dioxane",20,75,null,null,null,null,true,"C3",null,24,null,500,37,25]
[null,null,63,"34590-94-8","Éther de dipropylène glycol monométhylique","Dipropylene glycol monomethyl ether",100,606,150,900,null,null,true,"",null,34.6,990,600,0.4,26]
[null,null,64,"1321-74-0","Divinylbenzène","Divinyl benzene",10,53,null,null,null,null,false,"",null,null,null,null,0.57899999999999996,25]
[null,null,65,"106-89-8","Épichlorohydrine","Epichlorohydrin",2,7.6,null,null,null,null,true,"C2","EM",10,25,75,16.399999999999999,25]
[null,null,66,"141-78-6","Acétate d'éthyle","Ethyl acetate",400,1440,null,null,null,null,false,"",null,5.0000000000000001E-3,185,2000,93.2,25]
[null,null,67,"140-88-5","Acrylate d'éthyle","Ethyl acrylate",5,20,15,61,null,null,false,"C3",null,2.0000000000000001E-4,null,300,38.6,25]
[null,null,68,"64-17-5","Alcool éthylique","Ethyl alcohol",1000,1880,null,null,null,null,false,"",null,0.1,49,3300,59.3,25]
[null,null,69,"541-85-5","Éthyl amyl cétone","Ethyl amyl ketone",25,131,null,null,null,null,false,"",null,5.9,null,100,2,20]
[null,null,70,"100-41-4","Éthylbenzène","Ethyl benzene",100,434,125,543,null,null,false,"",null,2,200,800,9.5500000000000007,25]
[null,null,71,"74-96-4","Bromoéthane","Ethyl bromide",50,223,null,null,null,null,true,"C3",null,200,null,2000,467,25]
[null,null,72,"106-35-4","Éthylbutylcétone","Ethyl butyl ketone",50,234,null,null,null,null,false,"",null,null,null,1000,2.6,20]
[null,null,73,"109-94-4","Formate d'éthyle","Ethyl formate",100,303,null,null,null,null,false,"",null,31,null,1500,245,25]
[null,null,74,"75-08-1","Éthylmercaptan","Ethyl mercaptan",0.5,1.3,null,null,null,null,false,"",null,1E-4,1E-3,500,529,25]
[null,null,75,"75-12-7","Formamide","Formamide",10,18,null,null,null,null,true,"",null,81.400000000000006,null,null,6.0999999999999999E-2,25]
[null,null,76,"98-01-1","Furfural","Furfural",2,7.9,null,null,null,null,true,"",null,6.1000000000000004E-3,5.0999999999999996,100,2.21,25]
[null,null,77,"98-00-0","Alcool furfurylique","Furfuryl alcohol",10,40,15,60,null,null,true,"",null,8,null,75,0.60899999999999999,25]
[null,null,78,"111-30-8","Glutaraldéhyde","Glutaraldehyde",0.1,0.41,null,null,0.1,0.41,false]
[null,null,79,"556-52-5","Glycidol","Glycidol",25,76,null,null,null,null,false,"",null,null,null,150,0.9,20]
[null,null,80,"151-67-7","Halothane","Halothane",50,404,null,null,null,null,false,"",null,33,null,null,302,25]
[null,null,81,"87-68-3","Hexachlorobutadiène","Hexachlorobutadiene",0.02,0.21,null,null,null,null,true,"C2","EM",1.1000000000000001,null,null,0.22,25]
[null,null,82,"95-13-6","Indène","Indene",10,48,null,null,null,null,false,"",null,null,null,null,1.1000000000000001,25]
[null,null,83,"123-92-2","Acétate d'isoamyle","Isoamyl acetate",50,266,100,532,null,null,false,"",null,2.5000000000000001E-2,4.0999999999999996,1000,5.6,25]
[null,null,84,"123-51-3","Alcool isoamylique","Isoamyl alcohol",100,361,125,452,null,null,false,"",null,6.9,null,500,2.37,25]
[null,null,85,"110-19-0","Acétate d'isobutyle","Isobutyl acetate",150,713,null,null,null,null,false,"",null,2E-3,117,1300,17.8,25]
[null,null,86,"78-83-1","Alcool isobutylique","Isobutyl alcohol",50,152,null,null,null,null,false,"",null,40,null,1600,10.4,25]
[null,null,87,"26952-21-6","Alcool isooctylique","Isooctyl alcohol",50,266,null,null,null,null,true,"",null,null,null,null,0.36,20]
[null,null,88,"109-59-1","Isopropoxyéthanol","Isopropoxyethanol",25,106,null,null,null,null,true,"",null,null,null,null,5.2,25]
[null,null,89,"108-21-4","Acétate d'isopropyle","Isopropyl acetate",250,1040,310,1290,null,null,false,"",null,4.4999999999999998E-2,364,1800,60.37,25]
[null,null,90,"67-63-0","Alcool isopropylique","Isopropyl alcohol",400,983,500,1230,null,null,false,"",null,3.2,199.2,2000,45.4,25]
[null,null,91,"75-31-0","Isopropylamine","Isopropylamine",5,12,10,24,null,null,false,"",null,0.21,200,750,579.6,25]
[null,null,92,"141-79-7","Oxyde de mésityle","Mesityl oxide",10,40,null,null,null,null,false,"",null,12,25,1400,8.6999999999999993,20]
[null,null,93,"137-05-3","Cyano-2 acrylate de méthyle","Methyl 2-cyanoacrylate",2,9.1,4,18,null,null,false,"",null,0.9,5]
[null,null,94,"79-20-9","Acétate de méthyle","Methyl acetate",200,606,250,757,null,null,false,"",null,200,300,3100,216.2,25]
[null,null,95,"96-33-3","Acrylate de méthyle","Methyl acrylate",2,7,null,null,null,null,true,"",null,3.0000000000000001E-3,20,250,86.6,25]
[null,null,96,"67-56-1","Alcool méthylique","Methyl alcohol",200,262,250,328,null,null,true,"",null,100,20490,6000,127,25]
[null,null,97,"108-11-2","Alcool méthylamylique","Methyl amyl alcohol",25,104,40,167,null,null,true,"",null,0.3,null,400,2.8,20]
[null,null,98,"71-55-6","Méthylchloroforme","Methyl chloroform",350,1910,450,2460,null,null,false,"",null,82,null,700,124,25]
[null,null,99,"78-93-3","Méthyl éthyl cétone","Methyl ethyl ketone (MEK)",50,150,100,300,null,null,false,"",null,0.25,50,3000,91,25]
[null,null,100,"107-31-3","Formate de méthyle","Methyl formate",100,246,150,368,null,null,false,"",null,203.6,2800,4500,585.70000000000005,25]
[null,null,101,"74-88-4","Iodure de méthyle","Methyl iodide",2,12,null,null,null,null,true,"C2","EM",null,null,100,405,25]
[null,null,102,"110-12-3","Méthyl isoamyl cétone","Methyl isoamyl ketone",50,234,null,null,null,null,false,"",null,1.2E-2,null,null,5.77,25]
[null,null,103,"108-10-1","Méthyl isobutyl cétone","Methyl isobutyl ketone",50,205,75,307,null,null,false,"",null,0.1,47,500,19.899999999999999,25]
[null,null,104,"563-80-4","Méthyl isopropyl cétone","Methyl isopropyl ketone",200,705,null,null,null,null,false,"",null,null,null,null,42,20]
[null,null,105,"80-62-6","Méthacrylate de méthyle (monomère)","Methyl methacrylate (monomer)",50,205,null,null,null,null,false,"",null,0.05,null,1000,38.5,25]
[null,null,106,"110-43-0","Méthyl n-amyl cétone","Methyl n-amyl ketone",50,233,null,null,null,null,false,"",null,0.02,null,800,1.6,25]
[null,null,107,"591-78-6","Méthyl n-butyl cétone","Methyl n-butyl ketone",5,20,null,null,null,null,true,"",null,0.18,null,1600,3,20]
[null,null,108,"107-87-9","Méthyl propyl cétone","Methyl propyl ketone",150,530,null,null,null,null,false,"",null,7.9,null,1500,35.4,25]
[null,null,109,"1634-04-4","Éther de méthyle et de butyle tertiaire","Methyl tert-butyl ether",40,144,null,null,null,null,false,"",null,null,null,null,250,25]
[null,null,110,"126-98-7","Méthylacrylonitrile","Methylacrylonitrile",1,2.7,null,null,null,null,true,"",null,2.2000000000000002,null,null,71.2,25]
[null,null,111,"108-87-2","Méthylcyclohexane","Methylcyclohexane",400,1610,null,null,null,null,false,"",null,498,null,1200,46,25]
[null,null,112,"25639-42-3","Méthylcyclohexanol","Methylcyclohexanol",50,234,null,null,null,null,false,"",null,500,null,500,1.5,30]
[null,null,113,"75-09-2","Chlorure de méthylène","Methylene chloride",50,174,null,null,null,null,false,"C2","EM",155,622,2300,435,25]
[null,null,114,"127-19-5","N,N-Diméthylacétamide","N,N-Dimethylacetamide",10,36,null,null,null,null,true,"",null,21.4,46.8,300,2,25]
[null,null,115,"68-12-2","N,N-Diméthylformamide","N,N-Dimethylformamide",10,30,null,null,null,null,true,"",null,20,100,500,3.87,25]
[null,null,116,"628-63-7","Acétate d'amyle normal","n-Amyl acetate",50,266,100,532,null,null,false,"",null,5.0000000000000001E-3,7,1000,3.5,25]
[null,null,117,"91-20-3","Naphtalène","Naphthalene",10,52,15,79,null,null,false,"",null,0.3,null,250,8.5000000000000006E-2,25]
[null,null,118,"123-86-4","Acétate de butyle normal","n-Butyl acetate",150,713,200,950,null,null,false,"",null,0.3,20,1700,11.5,25]
[null,null,119,"141-32-2","Acrylate de butyle normal","n-Butyl acrylate",2,10,null,null,null,null,false,"",null,0.1,null,null,5.45,25]
[null,null,120,"71-36-3","Alcool butylique normal","n-Butyl alcohol",50,152,null,null,50,152,true,"",null,0.12,50,1400,7,25]
[null,null,121,"142-82-5","Heptane normal","n-Heptane",400,1640,500,2050,null,null,false,"",null,49,null,750,40,22.3]
[null,null,122,"110-54-3","Hexane normal","n-Hexane",50,176,null,null,null,null,true,"",null,null,null,1100,153,25]
[null,null,123,"79-24-3","Nitroéthane","Nitroethane",100,307,null,null,null,null,false,"",null,163,null,1000,20.8,25]
[null,null,124,"75-52-5","Nitrométhane","Nitromethane",100,250,null,null,null,null,false,"",null,3.5,100,750,27.8,20]
[null,null,125,"111-84-2","Nonane","Nonane",200,1050,null,null,null,null,false,"",null,650,9800,null,4.45,25]
[null,null,126,"109-66-0","Pentane normal","n-Pentane",120,350,null,null,null,null,false,"",null,2.2000000000000002,1017,1500,514,25]
[null,null,127,"109-60-4","Acétate de propyle normal","n-Propyl acetate",200,835,250,1040,null,null,false,"",null,0.05,25,1700,35.9,25]
[null,null,128,"71-23-8","Alcool propylique normal","n-Propyl alcohol",200,492,250,614,null,null,true,"",null,0.13,61,800,21,25]
[null,null,129,"2039-87-4","o-Chlorostyrène","o-Chlorostyrene",50,283,75,425,null,null,false,"",null,null,null,null,0.96,25]
[null,null,130,"95-49-8","o-Chlorotoluène","o-Chlorotoluene",50,259,null,null,null,null,false,"",null,null,null,null,3.43,25]
[null,null,131,"111-65-9","Octane","Octane",300,1400,375,1750,null,null,false,"",null,155,259,1000,14.1,25]
[null,null,132,"583-60-8","o-Méthylcyclohexanone","o-Methylcyclohexanone",50,229,75,344,null,null,true,"",null,null,null,600,1,20]
[null,null,133,"106-46-7","p-Dichlorobenzène","p-Dichlorobenzene",20,120,110,660,null,null,false,"C3",null,15,null,150,1.74,25]
[null,null,134,"127-18-4","Perchloroéthylène","Perchloroethylene",25,170,100,685,null,null,false,"C3",null,47,null,150,18.2,25]
[null,null,135,"108-95-2","Phénol","Phenol",5,19,null,null,null,null,true,"",null,0.05,5.8,250,0.35,25]
[null,null,136,"107-19-7","Alcool propargylique","Propargyl alcohol",1,2.2999999999999998,null,null,null,null,true,"",null,0.15,null,null,11.6,20]
[null,null,137,"107-98-2","Éther monométhylique de propylène glycol","Propylene glycol monomethyl ether",100,369,150,553,null,null,false,"",null,100,null,null,11.8,25]
[null,null,138,"75-56-9","Oxyde de propylène","Propylene oxide",20,48,null,null,null,null,false,"C2","EM",10,210,400,538,25]
[null,null,139,"110-86-1","Pyridine","Pyridine",5,16,null,null,null,null,false,"",null,0.2,null,1000,20.8,25]
[null,null,140,"626-38-0","Acétate d'amyle secondaire","sec-Amyl acetate",50,266,100,532,null,null,false,"",null,2E-3,0.08,1000,7,20]
[null,null,141,"105-46-4","Acétate de butyle secondaire","sec-Butyl acetate",200,950,null,null,null,null,false,"",null,null,null,1700,17,20]
[null,null,142,"78-92-2","Alcool butylique secondaire","sec-Butyl alcohol",100,303,null,null,null,null,false,"",null,43.3,null,2000,18.3,25]
[null,null,143,"108-84-9","Acétate d'hexyle secondaire","sec-Hexyl acetate",50,295,null,null,null,null,false,"",null,null,null,500,4,20]
[null,null,144,"126-99-8","bêta-Chloroprène","ß-Chloroprene",10,36,null,null,null,null,true,"",null,15,null,300,215,25]
[null,null,145,"57-57-8","bêta-Propiolactone","ß-Propiolactone",0.5,1.5,null,null,null,null,false,"C2","EM",null,null,null,3.4,25]
[null,null,146,"100-42-5","Styrène (monomère)","Styrene (monomer)",50,213,100,426,null,null,true,"C3",null,0.14000000000000001,200,700,6.4,25]
[null,null,147,"540-88-5","Acétate de butyle tertiaire","tert-Butyl acetate",200,950,null,null,null,null,false,"",null,null,null,1500,47,25]
[null,null,148,"75-65-0","Alcool butylique tertiaire","tert-Butyl alcohol",100,303,null,null,null,null,false,"",null,72,null,1600,40.700000000000003,25]
[null,null,149,"109-99-9","Tétrahydrofurane","Tetrahydrofuran",100,300,null,null,null,null,false,"",null,2.5,60,2000,162,25]
[null,null,150,"108-88-3","Toluène","Toluene",50,188,null,null,null,null,true,"",null,6.7,null,500,28.4,25]
[null,null,151,"79-01-6","Trichloroéthylène","Trichloroethylene",50,269,200,1070,null,null,false,"",null,82,null,1000,69,25]
[null,null,152,"25551-13-7","Triméthylbenzène","Trimethyl benzene",25,123,null,null,null,null,false,"",null,0.6,null,null,2.1,25]
[null,null,153,"108-05-4","Acétate de vinyle","Vinyl acetate",10,35,15,53,null,null,false,"C3",null,0.12,0.55000000000000004,null,90.2,20]
[null,null,154,"25013-15-4","Vinyltoluène","Vinyl toluene",50,242,100,483,null,null,false,"",null,50,null,400,1.81,25]
[null,null,155,"1330-20-7","Xylène (isomères o,m,p) [1330-20-7; 95-47-6; 108-38-3; 106-42-3]","Xylene (o-,m-,p- isomers)",100,434,150,651,null,null,false,"",null,1,null,900,8.2899999999999991,25]

{"sheet":"R1","index":12,"n_rows":11,"n_cols":4,"rows_kept":11,"cut":false,"hidden":false,"merged":[]}
[]
[]
[]
[]
[]
[null,"Level of control","Examples\n LINKS","Fraction of the saturation vapor concentration \"SVC\""]
[null,"Confined Space – \nVirtually no circulation",null,"   1/10th of Saturation"]
[null,"Poor –\nLimited Circulation",null,"   1/100th of Saturation"]
[null,"Good –\nGeneral ",null,"   1/1,000th of Saturation"]
[null,"Capture",null,"  1/10,000th of Saturation"]
[null,"Containment",null," 1/100,000th of Saturation"]

{"sheet":"R2","index":13,"n_rows":12,"n_cols":5,"rows_kept":12,"cut":false,"hidden":false,"merged":[]}
[]
[]
[]
[]
[]
[null,"Vapor Hazard Ratio\n(VHR)","VHR\nScale","Required Levels of Control\n(ReqLC)","Examples\n LINKS"]
[null,"< 0.05",1,"General Ventilation\n~ 3 to 6 air turnovers /hr."]
[null,"0.05 to < 1",2,"Good general ventilation\n~ 6 to 12 air turnovers/hr. (GGV)"]
[null,"1 to < 25 ",3,"GGV with capture at emission points"]
[null,"25 to < 500",4,"Capture at points of emission with containment wherever practical "]
[null,"500 to < 3000",5,"Containment"]
[null,"> 3000",6,"Primary and Secondary Containment"]

{"sheet":"R3","index":14,"n_rows":12,"n_cols":5,"rows_kept":12,"cut":false,"hidden":false,"merged":[]}
[]
[]
[]
[]
[]
[null,"OEL Range\nmg/m³","PHR\nScale","Required Levels of Control\n(ReqLC)","Examples\n LINKS"]
[null,"> 5 ",1,"General ventilation ~ 2 to 4 air turnovers/hr. "]
[null,"≤ 5 to 1",2,"Good – General + fans ~ 4 to 6 air turnovers/hr. "]
[null,"≤ 1 to 0.1",3,"Good – General + fans ~ 6 to 8 air turnovers/hr."]
[null,"≤ 0.1 to 0.01",4,"Capture"]
[null,"≤ 0.01 to 0.001",5,"Containment"]
[null,"≤ 0.001 ",6,"Secondary containment"]

{"sheet":"L1","index":15,"n_rows":3,"n_cols":1,"rows_kept":3,"cut":false,"hidden":false,"merged":[]}
[1]
[{"$f":"IF(NumberL1=1,\"Rule of ten\",IF(NumberL1=2,\"VHR\",\"PHR\"))","v":"Rule of ten"}]
[{"$f":"IF(NumberL1=1,\"General Ventilation ~ 1 to 2 air turnovers /hr.\",IF(NumberL1=2,\"General Ventilation ~ 3 to 6 air turnovers /hr.\",\"General Ventilation ~ 2 to 4 air turnovers /hr.\"))","v":"General Ventilation ~ 1 to 2 air turnovers /hr."}]

{"sheet":"L2","index":16,"n_rows":3,"n_cols":1,"rows_kept":3,"cut":false,"hidden":false,"merged":[]}
[3]
[{"$f":"IF(NumberL2=1,\"Rule of ten\",IF(NumberL2=2,\"VHR\",\"PHR\"))","v":"PHR"}]
[{"$f":"IF(NumberL2=1,\"General Ventilation ~ 1 to 2 air turnovers /hr.\",IF(NumberL2=2,\"General Ventilation ~ 6 to 12 air turnovers /hr.\",\"General Ventilation ~ 4 to 6 air turnovers /hr.\"))","v":"General Ventilation ~ 4 to 6 air turnovers /hr."}]

{"sheet":"L3","index":17,"n_rows":1,"n_cols":1,"rows_kept":1,"cut":false,"hidden":false,"merged":[]}
[1]

{"sheet":"L4","index":18,"n_rows":1,"n_cols":1,"rows_kept":1,"cut":false,"hidden":false,"merged":[]}
[3]

{"sheet":"L5","index":19,"n_rows":1,"n_cols":1,"rows_kept":1,"cut":false,"hidden":false,"merged":[]}
[1]

{"sheet":"L6","index":20,"n_rows":1,"n_cols":1,"rows_kept":1,"cut":false,"hidden":false,"merged":[]}
[3]

{"sheet":"to do ","index":21,"n_rows":7,"n_cols":10,"rows_kept":7,"cut":false,"hidden":true,"merged":[]}
[]
[null,null,null,null,null,null,null,"Lx?","Lx?","Lx?"]
[null,null,null,null,null,null,null,"L1","Lx?","Lx?"]
[null,null,null,null,null,null,null,"L2","Lx?","Lx?"]
[null,null,null,null,null,null,null,"L3","Lx?","Lx?"]
[null,null,null,null,null,null,null,"L5","Lx?","Lx?"]
[null,null,null,null,null,null,null,null,"Lx?","Lx?"]

{"sheet":"L7","index":22,"n_rows":1,"n_cols":1,"rows_kept":1,"cut":false,"hidden":false,"merged":[]}
[1]

{"sheet":"L8","index":23,"n_rows":1,"n_cols":1,"rows_kept":1,"cut":false,"hidden":false,"merged":[]}
[1]